Cogmind - Beta 15 @@@ ROGUE MODE // 2025.05.17 @ 11:13:28 Player: Eggpie Result: Destroyed by IC-H4R(R) with Subdweller Beam Cannon Performance ------------- Evolutions (0) 0 Regions Visited (2) 400 Robots Destroyed (4) 20 Value Destroyed (61) 61 Prototype IDs (0) 0 Alien Tech Used (0) 0 Bonus (-11) -11 TOTAL SCORE: 470 Bonus ------- Friendly Fire -11 Cogmind --------- Core Integrity 0/250 Matter 150/300 Energy 60/100 System Corruption 0% Temperature Cool (9) Movement Core (250) Ox4 Location -10/Subcaves Parts ------- > --- POWER (1) -------- (None) > --- PROPULSION (2) --- (None) > --- UTILITY (2) ------ Small Storage Unit > --- WEAPON (2) ------- Subdweller Shrapnel Launcher > --- INVENTORY (8) ---- Rainbow Chip Grenade Launcher Scrap Shield Fragment (48) Scrap Shield Fragment (48) Scrap Shield Fragment (32) Scrap Shield Fragment (31) Peak State ------------ > --- POWER ------------ Ion Engine > --- PROPULSION ------- Wheel Wheel > --- UTILITY ---------- Small Storage Unit Improved Terrain Scanner > --- WEAPON ----------- Assault Rifle Light Assault Rifle > --- INVENTORY -------- Grenade Launcher Subdweller Shrapnel Launcher Flamer Scrap Shield Fragment Scrap Shield Fragment Scrap Shield Fragment [Rating: 10] Favorites ----------- Power Ion Engine Engine Ion Engine Propulsion Wheel Wheel Wheel Utility Small Storage Unit Device Improved Terrain Scanner Storage Small Storage Unit Weapon Light Assault Rifle Ballistic Gun Light Assault Rifle Launcher Subdweller Shrapnel Launcher Special Weapon Flamer Build | -11 -10 -10 ------- Run | Yrd Mat Sub Slots Evolved . | . . . Power . | . . . Propulsion . | . . . Utility . | . . . Weapon . | . . . Parts Attached 11 | 8 . 3 Power 1 | 1 . . Engine 1 | 1 . . Core . | . . . Reactor . | . . . Propulsion 4 | 3 . 1 Treads . | . . . Leg . | . . . Wheel 4 | 3 . 1 Hover . | . . . Flight . | . . . Utility 2 | 2 . . Device 1 | 1 . . Storage 1 | 1 . . Processor . | . . . Hackware . | . . . Protection . | . . . Artifact . | . . . Weapon 4 | 2 . 2 Energy Gun . | . . . Energy Cannon . | . . . Ballistic Gun 2 | 2 . . Ballistic Cannon . | . . . Launcher 1 | . . 1 Special Weapon 1 | . . 1 Impact Weapon . | . . . Slashing Weapon . | . . . Piercing Weapon . | . . . Special Melee Weapon . | . . . Unidentified Prototypes . | . . . Parts Lost 8 | . . 8 Power 1 | . . 1 Propulsion 3 | . . 3 Utility 1 | . . 1 Weapon 3 | . . 3 Highest Loss Streak 5 | . . 5 To Critical Strikes . | . . . Average Backups 1 | . . 2 Power . | . . . Propulsion . | . . . Utility . | . . . Weapon 1 | . . 1 Tool/Special . | . . . Unused Backups 2 | . . 2 Power . | . . . Propulsion . | . . . Utility 1 | . . 1 Weapon 1 | . . 1 Tool/Special . | . . . Average Slot Usage (%) 92 | . 100 89 Engine 11 | . 14 9 Wheel 26 | . 28 25 Device 11 | . 14 9 Storage 14 | . 14 14 Ballistic Gun 24 | . 28 23 Special Weapon 2 | . . 4 Peak Build Rating 10 | 9 9 10 Average Rating 8 | 5 9 8 On Entrance 6 | . 9 9 Naked Turns . | . . . Heaviest Build 14 | 14 14 14 Greatest Support 26 | 26 20 20 Greatest Overweight (x) 4 | . . 4 Average Overweight (x) . | . . . Largest Inventory Capacity 8 | 8 8 8 Average Capacity 7 | 7 8 8 Most Carried 8 | 5 1 8 Average Carried 2 | . . 3 Final Capacity 8 | 8 8 8 Final Carried 6 | . 1 6 Class Distribution -------------------- 100% | Mutant Dominant Class ---------------- Mutant | -10/Materials Mutant | -10/Subcaves Resources | -11 -10 -10 ----------- Run | Yrd Mat Sub Matter Collected 256 | 224 . 32 Remotely . | . . . Salvage Created 103 | 71 . 32 Parts 9 | 9 . . Haulers Intercepted . | . . . Recyclers Shooed . | . . . Parts Field Recycled . | . . . Retrieved Matter . | . . . Parts Self-Destructed 16 | . . 16 Prevented . | . . . Kills | -11 -10 -10 ------- Run | Yrd Mat Sub Combat Hostiles Destroyed 1 | . . 1 Guns 1 | . . 1 Classes Destroyed 2 | 1 . 1 Tunneler 3 | 3 . . Subdweller 1 | . . 1 Best Kill Streak 3 | 3 . 1 Combat Bots Only 1 | . . 1 Max Kills in Single Turn 1 | 1 . 1 Gunslinging . | . . . Exploded . | . . . Melee . | . . . Uniques/NPCs Destroyed . | . . . Combat | -11 -10 -10 -------- Run | Yrd Mat Sub Hostile Shots Fired 27 | . . 27 Missed 3 | . . 3 Hits 24 | . . 24 Projectile 24 | . . 24 Critical Strikes 1 | . . 1 Damage Taken 674 | . 20 654 Core 270 | . . 270 Absorbed by Shields . | . . . Core Remaining (%) 100 | 100 . . Volleys Fired 41 | 20 4 17 Largest 2 | 2 2 2 Hottest 120 | 40 40 120 Shots Fired 73 | 32 8 33 Gun 68 | 32 8 28 Cannon . | . . . Launcher . | . . . Special 5 | . . 5 Kinetic 68 | 32 8 28 Thermal 5 | . . 5 Explosive . | . . . Electromagnetic . | . . . Robot Hit Streak 13 | 7 4 13 Robot Miss Streak 4 | 4 4 3 Penetration Max . | . . . Secondary Targets . | . . . Shots Hit Robots 47 | 18 3 26 Core Hits 10 | 7 . 3 Critical Kills . | . . . Critical Parts Destroyed . | . . . Critical Strikes . | . . . Melee Attacks . | . . . Impact . | . . . Slashing . | . . . Piercing . | . . . Sneak Attacks . | . . . Combat Hostiles . | . . . Follow-up Attacks . | . . . Damage Inflicted 477 | 213 39 225 Guns 422 | 213 39 170 Cannons . | . . . Explosions . | . . . Melee . | . . . Ramming . | . . . Kinetic 422 | 213 39 170 Thermal 55 | . . 55 Explosive . | . . . Electromagnetic . | . . . Impact . | . . . Slashing . | . . . Piercing . | . . . Highest Corruption . | . . . Average Corruption . | . . . Corruption Purged . | . . . Corruption Blocked . | . . . Overload Shots . | . . . Overflow Damage . | . . . Projectiles . | . . . Explosions . | . . . Melee . | . . . Knockbacks . | . . . Impact . | . . . Kinetic . | . . . Secondary . | . . . Self-Inflicted Damage . | . . . Shots . | . . . Rammed . | . . . Targets Rammed . | . . . Kicked . | . . . Crushed . | . . . Highest Temperature 279 | . . 279 Average Temperature 163 | . . 163 Received Heat Transfer 518 | . 12 506 Effects 1 | . . 1 Interference 1 | . . 1 Siege Activations . | . . . Martial Activations . | . . . Shielding Activations . | . . . Robots Disrupted . | . . . Combat Hostiles . | . . . Robots Corrupted . | . . . Combat Hostiles . | . . . Parts Fried . | . . . Impact Corruptions . | . . . Robots Melted . | . . . Combat Hostiles . | . . . Parts Melted . | . . . Heat Transferred 400 | . . 400 Parts Sabotaged . | . . . Parts Stolen . | . . . Parts Stripped . | . . . Power Chain Reactions . | . . . Alert | -11 -10 -10 ------- Run | Yrd Mat Sub Maximum Alert Level . | . . . Low Security (%) 100 | 100 100 . Level 1 . | . . . Level 2 . | . . . Level 3 . | . . . Level 4 . | . . . Level 5 . | . . . High Security . | . . . Max Security . | . . . Peak Influence 10 | 10 . . Initial . | . . . Average . | . . . Influence Increases 90 | 15 . 75 Destroy 0b10 Robot/NC 15 | 15 . . Lose Combat Pursuer 75 | . . 75 Influence Decreases 90 | 15 . 75 Time Decay 70 | 15 . 55 Lost Part 20 | . . 20 Squads Dispatched . | . . . Investigation . | . . . Extermination . | . . . Reinforcement . | . . . Assault . | . . . Garrison . | . . . Intercept . | . . . Searches Triggered . | . . . Construction Impeded . | . . . Haulers Reinforced . | . . . Active Scanning Responses . | . . . Cargo Convoy Interrupts . | . . . Stealth | -11 -10 -10 --------- Run | Yrd Mat Sub Distress Signals 1 | . 1 . Communications Jammed . | . . . Distress Signals . | . . . Times Spotted 9 | . 4 5 Peak Tracking Total 6 | . 3 6 Tactical Retreats 3 | . . 3 Traps | -11 -10 -10 ------- Run | Yrd Mat Sub Traps Triggered . | . . . Indirectly . | . . . Trap Hack Attempts . | . . . Triggered . | . . . Disarmed . | . . . Reprogrammed . | . . . Reused . | . . . Traps Extracted . | . . . Installed . | . . . Triggered . | . . . Machines | -11 -10 -10 ---------- Run | Yrd Mat Sub Machines Disabled . | . . . Max in Single Turn . | . . . Machines Repaired . | . . . Machines Dismantled . | . . . Machines Sabotaged . | . . . Overloaded Fab Kills . | . . . Hacking | -11 -10 -10 --------- Run | Yrd Mat Sub Machines Accessed 1 | . 1 . Terminals 1 | . 1 . Fabricators . | . . . Repair Stations . | . . . Recycling Units . | . . . Scanalyzers . | . . . Garrison Access . | . . . Total Hacks 2 | . 2 . Successful 1 | . 1 . Failed 1 | . 1 . Catastrophic . | . . . Database Lockouts . | . . . Manual . | . . . Terminals 2 | . 2 . Fabricators . | . . . Repair Stations . | . . . Recycling Units . | . . . Scanalyzers . | . . . Garrison Access . | . . . Terminal Hacks 1 | . 1 . Registered Components 1 | . 1 . Fabricator Hacks . | . . . Repair Station Hacks . | . . . Recycling Unit Hacks . | . . . Scanalyzer . | . . . Garrison Access Hacks . | . . . Unauthorized Hacks . | . . . Terminals . | . . . Fabricators . | . . . Repair Stations . | . . . Recycling Units . | . . . Scanalyzers . | . . . Garrison Access . | . . . Data Cores Recovered . | . . . Used . | . . . Hacking Detections . | . . . Full Trace Events . | . . . Feedback Events . | . . . Feedback Blocked . | . . . Robot Schematics Acquired . | . . . Robots Built . | . . . Authchips . | . . . Time . | . . . Total Robot Build Rating . | . . . Part Schematics Acquired . | . . . Parts Built . | . . . Authchips . | . . . Time . | . . . Total Part Build Rating . | . . . Parts Repaired . | . . . Time . | . . . Parts Recycled . | . . . Recycled Matter . | . . . Retrieved Matter . | . . . Retrieved Components . | . . . Parts Scanalyzed . | . . . Part Schematics Acquired . | . . . Parts Damaged . | . . . Bothacking | -11 -10 -10 ------------ Run | Yrd Mat Sub Used RIF Installer . | . . . Robots Hacked . | . . . Non-combat . | . . . Combat . | . . . Robot Hacks Applied . | . . . Relay Couplers Released . | . . . Fabnet Peak Effective % . | . . . Robots Rewired . | . . . Allies Hacked . | . . . Hacks Repelled . | . . . Allies | -11 -10 -10 -------- Run | Yrd Mat Sub Total Allies . | . . . Largest Group . | . . . Highest-Rated Group . | . . . Highest-Rated Ally . | . . . Total Orders . | . . . Ally Attacks . | . . . Total Damage . | . . . Kills . | . . . Allies Corrupted . | . . . Allies Melted . | . . . Intel | -11 -10 -10 ------- Run | Yrd Mat Sub Active Infowar (turns) 388 | 23 143 222 Terrain 388 | 23 143 222 Robot Analysis Total . | . . . Derelict Logs Recovered 1 | . . 1 Drone Launches . | . . . Drone Recoveries . | . . . Exploration | -11 -10 -10 ------------- Run | Yrd Mat Sub Turns Passed 588 | 109 143 336 Spaces Moved 511 | 55 145 311 Core 8 | 7 . 1 Treads . | . . . Legs . | . . . Wheels 503 | 48 145 310 Hover . | . . . Flight . | . . . Fastest Speed 50 | 50 80 80 Average Speed 80 | 81 80 80 Slowest Speed 250 | 90 80 250 Overloaded Moves . | . . . Propulsion Burnouts . | . . . Robots Hopped . | . . . Potential Cave-ins . | . . . Cave-ins Triggered . | . . . Exploration Rate (%) 16 | 4 26 18 Regions Visited 2 Branch Regions 1 Pre-discovered Areas . | . . . Known Exits Taken . | . . . Unknown Exits Taken 2 | 1 1 . Scrap Searched . | . . . Spaces Dug . | . . . Terrain Destroyed . | . . . Melee . | . . . Projectile . | . . . AOE . | . . . Terrain Rammed . | . . . Walls Destroyed . | . . . Machines Disabled . | . . . Actions | -11 -10 -10 --------- Run | Yrd Mat Sub Total 615 | 91 164 360 Wait 36 | . 15 21 Move 509 | 54 144 311 Hop . | . . . Pick Up 16 | 8 1 7 Fast Attach 1 | . . 1 Attach 9 | 7 . 2 Detach . | . . . Swap 2 | 1 . 1 Drop 1 | 1 . . Fire 41 | 20 4 17 Melee . | . . . Ram . | . . . Kick . | . . . Crush . | . . . Escape Stasis . | . . . Rewire . | . . . Trap . | . . . Miscellaneous . | . . . Route ------- -11/Scrapyard -10/Materials (discovered 2 exits: [*Mat] / [*Sub]) -10/Subcaves (discovered 1 exit: [Scr]) History --------- Turn | Location | Event 16 | -11/Scrapyard | Discovered new exit (range 15) 110 | -11/Scrapyard | Entered Materials 111 | -10/Materials | Met a group of wandering Federalists 171 | -10/Materials | Discovered new exit (range 8) 251 | -10/Materials | Discovered new exit (range 3) 253 | -10/Materials | Entered Subcaves 254 | -10/Subcaves | Continued accompanying wandering Federalists (5) 254 | -10/Subcaves | Approached by a straggling Scientist 271 | -10/Subcaves | Learned Materials terminal intel 301 | -10/Subcaves | Build established: Mutant 317 | -10/Subcaves | A swath of the cavern ceiling suddenly collapsed 429 | -10/Subcaves | Shifting Twisted Machinery released Sub. Shrapnel Launcher 432 | -10/Subcaves | Shifting Twisted Machinery released Flamer 453 | -10/Subcaves | A Subdweller sparked back to life 453 | -10/Subcaves | A Subdweller sparked back to life 481 | -10/Subcaves | Found Prototype Processor 489 | -10/Subcaves | Core integrity fell below 50% 544 | -10/Subcaves | Lost 3 parts (1p1n1u) 586 | -10/Subcaves | Core integrity fell below 20% 589 | -10/Subcaves | Destroyed by IC-H4R(R) with Subdweller Beam Cannon Last Messages --------------- 00475_ Imp. Terrain Scanner temporarily disabled. 00476_ Acquired Scrap Shield Fragment. 00477_ Acquired 32 matter. 00479_ Acquired Scrap Shield Fragment. 00480_ Imp. Terrain Scanner destroyed. 00481_ Acquired Prototype Processor. 00486_ Ion Engine destroyed. JR-LMB(c): "I think it's somewhere west of here" 00513_ Wheel destroyed. 00546_ GX-GDG(u) builds Twisted Machinery. 00549_ GX-GDG(u) tweaks Twisted Machinery. JR-LMB(c): "I think it's somewhere west of here" 00564_ JR-LMB(c) destroyed. 00568_ Acquired Wheel. 00577_ Lgt. Assault Rifle destroyed. 00581_ Wheel destroyed. 00583_ Flamer destroyed. 00583_ Wheel destroyed. 00585_ Assault Rifle destroyed. Map ----- +----------------------------------------------------+ | ???#???????????????????????????????????????? | | ??????#????????????????????????????????????? | | ??????#????????????????????????????????????? | | ?????## ?????????####??????????????????????? | | ???### ???????###" ##?????????????????????? | | #??? ?????##"" ####??????????????????? | | ????# ####?# " ##?????????????????? | | ????? # #?# ##????????????????? | | ?????# #??# ##???????????????? | | ?????# ## #???# "" ##??????????????? | | ?????# ##" ##??#"" #??????????????? | | ?????# """""#?## " #??????????????? | | ???????#"""""### """ #??????????????? | | ????????#"" ""### ##" ##??????????????? | | ??#?????## "" # ##???????????????? | | #??#?????## ##????????????????? | | ##???????## ##????????????????? | | #????####### # # ####?????????????? | | ##?## ### ##### #?????????????? | | # ### ## #???# #?????????????? | | ?# ## #???## #?????????????? | | ## ##???# #?????????????? | | # #???## ! #?????????????? | | ## #??####R ###?????????????? | | ### #?#?## #??????????????? | | #######??#; @ ##??????????????? | | ####???????### ##??????????????? | | #??????????# #??????????????? | | ##??????????## ##??????????????? | | # ##?? ###?????# ##???????????????? | | # ## ###???# #????????????????? | | #??# #????????????????? | | #?## #????????????????? | | ####### ??#####????????????????? | | ## #??????????????????????????????? | | ###### #??????????????????????????????? | | ?????# #??????????????????????????????? | | ????? ## #??????????????????????????????? | | ????? #?##??????????????????????????????? | | ????? #?????????????????????????????????? | | ????? ##?????????????????????????????????? | | ????? ##??????????????????????????????????? | | ?????? #???????????????????????????????????? | | ??????? ???????????????????????????????????? | | ??????? ???????????????????????????????????? | | ?????>? ???????????????????????????????????? | | ??????? ???????????????????????????????????? | | ???????????????????????????????????????????? | | ???????????????????????????????????????????? | | ???????????????????????????????????????????? | +----------------------------------------------------+ Best States ------------- Heat Dissipation 25 Energy Generation 10 Energy Capacity 250 Matter Stores 238 Matter Capacity 300 Sight Range 16 Terrain Scan Range 16 Terrain Scan Density 10 Evasion (%) 50 Item Schematics ----------------- None Robot Schematics ------------------ None Fabricated ------------ Nothing Repaired ---------- Nothing Alien Tech Used ----------------- None Achievements -------------- None Challenges ------------ None Game ------ Seed SensorUltimateCutter Manual? 0 Play Time 00:08:05 Cumulative 26.0 hours Start 2025.05.17 @ 11:06:26 End 2025.05.17 @ 11:13:28 Sessions 1 Manual Loads 0 Difficulty Rogue Special Mode None Game No. 18 Rogue 12 Adventurer 0 Explorer 6 Win Type - Total 1 Types 1/0/0/0/0/0/0/0/0/0 Lore% 12 Gallery% 39 Achievement% 39 Wizard Run 0 Options --------- Layout 1 ASCII 0 Keyboard 0 Movement Mouse Keybinds 0 Fullscreen 1 Font 36/Smallcaps Map View 50x35 Zoom Use 0% Tactical HUD 1 Map Filters NONE Filters NONE Steam 1 RUN: ba240fc9-0057-45b6-a1a8-6ec4c6d03680